Cogmind - Beta 13 @@@ ROGUE MODE // 2024.04.02 @ 16:05:03 Player: donk Result: Destroyed by X-62 Marksman with Gauss Rifle Performance ------------- Evolutions (4) 2000 Regions Visited (5) 1000 Robots Destroyed (123) 615 Value Destroyed (3894) 3894 Prototype IDs (2) 40 Alien Tech Used (0) 0 Bonus (158) 158 TOTAL SCORE: 7707 Bonus ------- High Alert Combat Kills 158 Cogmind --------- Core Integrity 0/850 Matter 266/300 Energy 173/340 System Corruption 4% Temperature Cool (24) Movement Walking (120) Location -6/Factory Parts ------- > --- POWER (2) -------- Reinforced Deuterium Engine Micro Nuclear Core > --- PROPULSION (4) --- Carbon-fiber Leg Armored Leg Armored Leg Armored Leg > --- UTILITY (5) ------ (None) > --- WEAPON (4) ------- EM Pulse Cannon Minigun > --- INVENTORY (5) ---- Flexi-carbon Leg Terrain Scanner Improved Shield Generator Peak State ------------ > --- POWER ------------ Micro Nuclear Core Micro Nuclear Core > --- PROPULSION ------- Flexi-carbon Leg Armored Leg Armored Leg Armored Leg > --- UTILITY ---------- Improved Heat Sink Improved Light Armor Plating Improved Shield Generator System Restoration Module Drone Bay > --- WEAPON ----------- Shock Rifle EM Pulse Cannon Minigun Minigun > --- INVENTORY -------- Reinforced Deuterium Engine Carbon-fiber Leg Terrain Scanner Minigun [Rating: 60] Favorites ----------- Power Improved Deuterium Engine Engine Improved Deuterium Engine Power Core Micro Nuclear Core Propulsion VSS Leg Treads Light Treads Leg VSS Leg Wheel Wheel Hover Unit Hover Unit Flight Unit Flight Unit Utility Actuator Array Device Actuator Array Storage Small Storage Unit Processor Targeting Computer Hackware System Shield Protection Improved Light Armor Plating Weapon Powered Hammer Energy Gun Beam Rifle Energy Cannon EM Pulse Cannon Ballistic Gun Minigun Impact Weapon Powered Hammer Slashing Weapon Mining Claw Build | -11 -10 -9 -8 -7 -6 ------- Run | Yrd Mat Mat Mat Fac Fac Slots Evolved 8 | . . 2 2 2 2 Power 1 | . . . . 1 . Propulsion 2 | . . 2 . . . Utility 3 | . . . 2 . 1 Weapon 2 | . . . . 1 1 Parts Attached 226 | 7 11 44 56 48 60 Power 35 | 1 2 6 6 6 14 Engine 24 | 1 2 6 6 4 5 Core 11 | . . . . 2 9 Reactor . | . . . . . . Propulsion 77 | 2 2 17 25 24 7 Treads 13 | 2 . 5 2 4 . Leg 37 | . . 8 8 14 7 Wheel 14 | . 2 . 6 6 . Hover 2 | . . . 2 . . Flight 11 | . . 4 7 . . Utility 61 | 1 4 5 18 10 23 Device 29 | . . 1 10 7 11 Storage 6 | 1 1 1 3 . . Processor 7 | . 2 2 1 . 2 Hackware 1 | . . . 1 . . Protection 18 | . 1 1 3 3 10 Artifact . | . . . . . . Weapon 53 | 3 3 16 7 8 16 Energy Gun 14 | 2 3 8 . . 1 Energy Cannon 6 | . . 1 . . 5 Ballistic Gun 14 | 1 . 2 1 1 9 Ballistic Cannon . | . . . . . . Launcher . | . . . . . . Special Weapon . | . . . . . . Impact Weapon 11 | . . . 4 6 1 Slashing Weapon 8 | . . 5 2 1 . Piercing Weapon . | . . . . . . Special Melee Weapon . | . . . . . . Unidentified Prototypes . | . . . . . . Parts Lost 53 | . 1 8 15 5 24 Power 8 | . . 1 1 3 3 Propulsion 17 | . 1 3 8 1 4 Utility 20 | . . 2 6 1 11 Weapon 8 | . . 2 . . 6 Highest Loss Streak 12 | . 1 5 5 3 12 To Critical Strikes . | . . . . . . Average Slot Usage (%) 88 | . 97 84 81 93 87 Engine 8 | . 14 10 8 8 3 Core 2 | . . . . 3 8 Treads 6 | . 9 19 1 5 . Leg 14 | . . 6 19 18 23 Wheel 5 | . 17 4 4 4 . Device 12 | . . . 16 23 13 Storage 4 | . 5 11 8 . . Processor 3 | . 17 5 1 . 1 Protection 5 | . 3 4 1 5 13 Energy Gun 5 | . 27 9 . . . Energy Cannon 1 | . . 2 . . 3 Ballistic Gun 1 | . . 1 . . 6 Impact Weapon 10 | . . . 12 21 9 Slashing Weapon 2 | . . 6 4 . 3 Naked Turns 6 | . . . . . 6 Heaviest Build 52 | 13 19 22 39 52 52 Greatest Support 68 | 40 40 60 56 64 68 Greatest Overweight (x) 11 | . 1 3 7 11 10 Average Overweight (x) . | . . . . . . Largest Inventory Capacity 10 | 8 8 10 10 5 5 Average Capacity 6 | 7 6 8 5 5 5 Most Carried 8 | 4 5 8 7 5 5 Average Carried 3 | 3 3 4 2 3 3 Final Capacity 10 | 8 8 10 5 5 5 Final Carried 6 | 4 4 6 3 4 3 Class Distribution -------------------- 38% | Gladiator 29% | Mutant 15% | Scavenger-Mutant 8% | Scavenger-Gladiator 6% | Tank Dominant Class ---------------- Mutant | -10/Materials Mutant | -9/Materials Gladiator | -8/Materials Gladiator | -7/Factory Gladiator | -6/Factory Resources | -11 -10 -9 -8 -7 -6 ----------- Run | Yrd Mat Mat Mat Fac Fac Matter Collected 2628 | 208 167 393 591 590 679 Remotely . | . . . . . . Salvage Created 4971 | . 559 1015 718 1300 1379 Parts 211 | . 41 53 23 44 50 Haulers Intercepted 1 | . . 1 . . . Recyclers Shooed 4 | . 2 1 . . 1 Parts Field Recycled . | . . . . . . Retrieved Matter . | . . . . . . Parts Self-Destructed . | . . . . . . Prevented . | . . . . . . Kills | -11 -10 -9 -8 -7 -6 ------- Run | Yrd Mat Mat Mat Fac Fac Combat Hostiles Destroyed 90 | . 15 19 9 20 27 Melee 33 | . . 8 6 9 10 Guns 24 | . 13 9 . . 2 Cannons 5 | . . 2 . . 3 AOE 5 | . 2 . . . 3 Classes Destroyed 15 | . 5 2 3 2 3 Worker 3 | . 1 1 . . 1 Builder 1 | . . . 1 . . Tunneler 1 | . . . . 1 . Hauler 1 | . . 1 . . . Recycler 13 | . 1 5 2 4 1 Mechanic 1 | . . . . . 1 Operator 2 | . . . 2 . . Watcher 11 | . 3 2 3 2 1 Swarmer 31 | . 9 11 . 2 9 Grunt 35 | . 6 5 6 9 9 Brawler 1 | . . . . . 1 Duelist 1 | . . . . . 1 Sentry 14 | . . 3 2 7 2 Hunter 2 | . . . 1 1 . Programmer 6 | . . . . 1 5 Best Kill Streak 9 | . 5 6 2 4 9 Combat Bots Only 8 | . 4 6 2 3 8 Max Kills in Single Turn 2 | . 2 1 1 1 2 Gunslinging 1 | . 1 . . . . Exploded 1 | . 1 . . . 1 Melee 1 | . . 1 1 1 1 Uniques/NPCs Destroyed . | . . . . . . Combat | -11 -10 -9 -8 -7 -6 -------- Run | Yrd Mat Mat Mat Fac Fac Hostile Shots Fired 1127 | . 63 188 130 314 432 Missed 328 | . 16 44 34 112 122 Damage Taken 9918 | . 511 1541 1443 1892 4531 Core 1643 | . 78 352 161 192 860 Absorbed by Shields 428 | . . . . 69 359 Regen/Repaired (Parts) 191 | . 58 . . 133 . Core Remaining (%) 64 | 100 68 12 70 72 . Volleys Fired 130 | 3 50 40 3 3 31 Largest 4 | 1 2 2 1 1 4 Hottest 176 | 20 112 121 28 28 176 Shots Fired 256 | 3 98 62 3 3 87 Gun 201 | 3 98 45 3 3 49 Cannon 55 | . . 17 . . 38 Launcher . | . . . . . . Special . | . . . . . . Kinetic 65 | 3 . 9 3 3 47 Thermal 112 | . 76 36 . . . Explosive . | . . . . . . Electromagnetic 79 | . 22 17 . . 40 Robot Hit Streak 11 | 1 11 6 1 2 10 Robot Miss Streak 6 | 1 4 6 2 5 3 Penetration Max . | . . . . . . Secondary Targets 2 | . 1 . . . 1 Max Gunslinging Chain 1 | . 1 . . . 1 Shots Hit Robots 361 | 1 48 61 64 78 109 Core Hits 138 | . 26 40 13 17 42 Critical Kills 5 | . . . . 4 1 Critical Parts Destroyed 30 | . . 1 5 13 11 Critical Strikes 48 | . 3 3 6 20 16 Burn 3 | . 2 1 . . . Destroy 2 | . . 1 . . 1 Corrupt 4 | . 1 1 . . 2 Smash 37 | . . . 6 20 11 Sever 2 | . . . . . 2 Melee Attacks 297 | . . 40 83 97 77 Impact 195 | . . . 42 97 56 Slashing 102 | . . 40 41 . 21 Piercing . | . . . . . . Sneak Attacks 18 | . . 6 6 4 2 Combat Hostiles 1 | . . 1 . . . Follow-up Attacks 68 | . . 3 11 28 26 Damage Inflicted 10839 | 17 787 1281 1716 2989 4049 Guns 1574 | 17 663 420 19 48 407 Cannons 812 | . . 206 . . 606 Explosions 650 | . 105 . . . 545 Melee 7744 | . . 655 1697 2941 2451 Ramming 59 | . 19 . . . 40 Kinetic 601 | 17 . 117 19 48 400 Thermal 1425 | . 577 303 . . 545 Explosive . | . . . . . . Electromagnetic 1010 | . 191 206 . . 613 Impact 5774 | . . . 1041 2941 1792 Slashing 1970 | . . 655 656 . 659 Piercing . | . . . . . . Highest Corruption 5 | . . . . 5 4 Average Corruption 3 | . . . . 3 3 Corruption Purged 5 | . . . . . 5 Corruption Blocked . | . . . . . . Effects 54 | . . . . 25 29 Message Errors 9 | . . . . 6 3 Matter Fused 13 | . . . . 9 4 Heat Flow Errors 10 | . . . . 3 7 Energy Discharges 10 | . . . . 3 7 Parts Rejected 2 | . . . . . 2 Data Loss (minor) 3 | . . . . 1 2 Data Loss (major) 5 | . . . . 2 3 Misfires 1 | . . . . . 1 Alerts 1 | . . . . 1 . Overload Shots . | . . . . . . Overflow Damage 2013 | . . 58 345 793 817 Projectiles 25 | . . 14 . . 11 Explosions 131 | . . . . . 131 Melee 1857 | . . 44 345 793 675 Knockbacks 16 | . . . 2 8 6 Impact 15 | . . . 2 8 5 Kinetic . | . . . . . . Secondary 1 | . . . . . 1 Self-Inflicted Damage 280 | . 81 . . . 199 Shots 5 | . 2 . . . 3 Rammed 25 | . 1 . . . 24 Targets Rammed 25 | . 1 . . . 24 Kicked . | . . . . . . Crushed . | . . . . . . Highest Temperature 511 | . 292 511 5 254 384 Average Temperature 128 | . 104 198 3 78 126 Received Heat Transfer 2046 | . 96 351 585 471 543 Effects 18 | . 2 9 . . 7 Shutdowns 5 | . . 3 . . 2 Energy Bleed 4 | . 2 2 . . . Interference 6 | . . 1 . . 5 Short Circuit 1 | . . 1 . . . Damage (minor) 1 | . . 1 . . . Damage (core) 1 | . . 1 . . . Siege Activations . | . . . . . . Robots Corrupted 3 | . . 1 . . 2 Combat Hostiles 2 | . . . . . 2 Parts Fried 34 | . . 1 8 13 12 Impact Corruptions 72 | . . . 17 32 23 Robots Melted . | . . . . . . Combat Hostiles . | . . . . . . Parts Melted 8 | . 5 2 . . 1 Heat Transferred 2508 | . 1472 683 . . 353 Parts Sabotaged . | . . . . . . Parts Stolen . | . . . . . . Parts Stripped . | . . . . . . Power Chain Reactions 5 | . 2 . . . 3 Alert | -11 -10 -9 -8 -7 -6 ------- Run | Yrd Mat Mat Mat Fac Fac Peak Influence 494 | . 337 320 232 368 494 Initial 135 | . . 50 131 . 135 Average 179 | . 163 155 90 206 335 Maximum Alert Level 2 | . 1 1 1 1 2 Low Security (%) 60 | 100 71 65 96 44 15 Level 1 34 | . 28 34 3 55 49 Level 2 5 | . . . . . 34 Level 3 . | . . . . . . Level 4 . | . . . . . . Level 5 . | . . . . . . High Security . | . . . . . . Max Security . | . . . . . . Squads Dispatched 22 | . 2 1 1 10 8 Investigation 4 | . 1 . . 2 1 Extermination 4 | . . . . 2 2 Reinforcement 4 | . 1 1 1 . 1 Assault 2 | . . . . 1 1 Garrison 8 | . . . . 5 3 Intercept . | . . . . . . Searches Triggered . | . . . . . . Construction Impeded . | . . . . . . Haulers Reinforced . | . . . . . . Active Scanning Responses . | . . . . . . Cargo Convoy Interrupts 1 | . . . . . 1 Stealth | -11 -10 -9 -8 -7 -6 --------- Run | Yrd Mat Mat Mat Fac Fac Distress Signals 6 | . 3 1 . . 2 Communications Jammed . | . . . . . . Distress Signals . | . . . . . . Times Spotted 155 | . 22 30 25 28 50 Peak Tracking Total 10 | . 4 6 3 4 10 Tactical Retreats 13 | . 1 2 2 3 5 Traps | -11 -10 -9 -8 -7 -6 ------- Run | Yrd Mat Mat Mat Fac Fac Traps Triggered 2 | . 1 . . 1 . Indirectly . | . . . . . . Trap Hack Attempts . | . . . . . . Triggered . | . . . . . . Disarmed . | . . . . . . Reprogrammed . | . . . . . . Reused . | . . . . . . Traps Extracted . | . . . . . . Installed . | . . . . . . Triggered 2 | . . 2 . . . Machines | -11 -10 -9 -8 -7 -6 ---------- Run | Yrd Mat Mat Mat Fac Fac Machines Disabled 7 | . 3 . . 1 3 Max in Single Turn 1 | . 1 . . 1 1 Garrison Access 1 | . . . . 1 . Machines Repaired . | . . . . . . Machines Dismantled . | . . . . . . Machines Sabotaged . | . . . . . . Overloaded Fab Kills . | . . . . . . Hacking | -11 -10 -9 -8 -7 -6 --------- Run | Yrd Mat Mat Mat Fac Fac Machines Accessed 20 | . 3 5 3 6 3 Terminals 15 | . 2 5 2 3 3 Fabricators . | . . . . . . Repair Stations 3 | . 1 . . 2 . Recycling Units 1 | . . . 1 . . Scanalyzers . | . . . . . . Garrison Access 1 | . . . . 1 . Total Hacks 61 | . 10 13 11 15 12 Successful 43 | . 7 9 8 10 9 Failed 18 | . 3 4 3 5 3 Catastrophic 1 | . . . . 1 . Database Lockouts . | . . . . . . Manual . | . . . . . . Terminals 39 | . 6 13 4 4 12 Fabricators . | . . . . . . Repair Stations 13 | . 4 . . 9 . Recycling Units 7 | . . . 7 . . Scanalyzers . | . . . . . . Garrison Access 2 | . . . . 2 . Terminal Hacks 27 | . 3 9 4 2 9 Record 13 | . 1 1 3 . 8 Prototype ID Bank 1 | . . 1 . . . Open DSF 1 | . . . . . 1 Level Access Points 1 | . . . 1 . . Terminal Index 1 | . . 1 . . . Alert Level 2 | . . 2 . . . Locate Traps 3 | . 1 2 . . . Maintenance Status 1 | . . 1 . . . Transport Status 1 | . . 1 . . . Extermination Status 1 | . . . . 1 . Hauler Manifests 1 | . 1 . . . . Zone Layout 1 | . . . . 1 . Fabricator Hacks . | . . . . . . Repair Station Hacks 12 | . 4 . . 8 . Scan Component 7 | . 2 . . 5 . Repair 5 | . 2 . . 3 . Recycling Unit Hacks 4 | . . . 4 . . Recycle Component 1 | . . . 1 . . Process 1 | . . . 1 . . Report Inventory 1 | . . . 1 . . Retrieve Matter 1 | . . . 1 . . Scanalyzer . | . . . . . . Garrison Access Hacks . | . . . . . . Unauthorized Hacks . | . . . . . . Terminals . | . . . . . . Fabricators . | . . . . . . Repair Stations . | . . . . . . Recycling Units . | . . . . . . Scanalyzers . | . . . . . . Garrison Access . | . . . . . . Data Cores Recovered 1 | . . . 1 . . Used . | . . . . . . Hacking Detections 14 | . 2 2 1 6 3 Full Trace Events 3 | . . . . 2 1 Feedback Events 1 | . . . . . 1 Corruption 1 | . . . . . 1 Feedback Blocked . | . . . . . . Robot Schematics Acquired . | . . . . . . Robots Built . | . . . . . . Authchips . | . . . . . . Time . | . . . . . . Total Robot Build Rating . | . . . . . . Part Schematics Acquired . | . . . . . . Parts Built . | . . . . . . Authchips . | . . . . . . Time . | . . . . . . Total Part Build Rating . | . . . . . . Parts Repaired 5 | . 2 . . 3 . Time 138 | . 52 . . 86 . Parts Recycled 1 | . . . 1 . . Recycled Matter 44 | . . . 44 . . Retrieved Matter 44 | . . . 44 . . Retrieved Components . | . . . . . . Parts Scanalyzed . | . . . . . . Part Schematics Acquired . | . . . . . . Parts Damaged . | . . . . . . Bothacking | -11 -10 -9 -8 -7 -6 ------------ Run | Yrd Mat Mat Mat Fac Fac Used RIF Installer . | . . . . . . Robots Hacked . | . . . . . . Non-combat . | . . . . . . Combat . | . . . . . . Robot Hacks Applied . | . . . . . . Relay Couplers Released 3 | . . . . 3 . Machine Destruction 3 | . . . . 3 . Fabnet Peak Effective % . | . . . . . . Robots Rewired . | . . . . . . Allies Hacked . | . . . . . . Hacks Repelled . | . . . . . . Allies | -11 -10 -9 -8 -7 -6 -------- Run | Yrd Mat Mat Mat Fac Fac Total Allies . | . . . . . . Largest Group . | . . . . . . Highest-Rated Group . | . . . . . . Highest-Rated Ally . | . . . . . . Total Orders . | . . . . . . Ally Attacks . | . . . . . . Total Damage . | . . . . . . Kills . | . . . . . . Allies Corrupted . | . . . . . . Allies Melted . | . . . . . . Intel | -11 -10 -9 -8 -7 -6 ------- Run | Yrd Mat Mat Mat Fac Fac Robot Analysis Total . | . . . . . . Derelict Logs Recovered . | . . . . . . Drone Launches 2 | . . . . . 2 Drone Recoveries 1 | . . . . . 1 Exploration | -11 -10 -9 -8 -7 -6 ------------- Run | Yrd Mat Mat Mat Fac Fac Turns Passed 8333 | 436 993 1504 1659 2394 1347 Spaces Moved 4504 | 107 749 815 903 1209 721 Core 120 | 4 . 30 62 2 22 Treads 913 | 103 140 396 . 274 . Legs 2187 | . . 168 560 760 699 Wheels 1128 | . 609 88 258 173 . Hover . | . . . . . . Flight 156 | . . 133 23 . . Fastest Speed 31 | 50 80 31 86 90 50 Average Speed 131 | 155 94 133 137 150 126 Slowest Speed 600 | 160 160 280 440 600 550 Overloaded Moves . | . . . . . . Propulsion Burnouts . | . . . . . . Robots Hopped 1 | . . 1 . . . Cave-ins Triggered . | . . . . . . Exploration Rate (%) 32 | 10 81 33 39 21 13 Regions Visited 5 Branch Regions . Pre-discovered Areas . | . . . . . . Known Exits Taken 1 | . . . 1 . . Unknown Exits Taken 4 | 1 1 1 . 1 . Scrap Searched . | . . . . . . Spaces Dug 2 | . . . . . 2 Terrain Destroyed 19 | . 2 . . . 17 Melee 2 | . . . . . 2 Projectile . | . . . . . . AOE 17 | . 2 . . . 15 Terrain Rammed . | . . . . . . Walls Destroyed . | . . . . . . Machines Disabled . | . . . . . . Actions | -11 -10 -9 -8 -7 -6 --------- Run | Yrd Mat Mat Mat Fac Fac Total 6300 | 372 931 1090 1173 1695 1039 Wait 999 | 249 103 110 86 327 124 Move 4497 | 106 748 812 902 1208 721 Hop 1 | . . 1 . . . Pick Up 85 | 6 9 19 24 16 11 Fast Attach 94 | 4 4 16 25 22 23 Attach 33 | 3 1 6 5 9 9 Detach 10 | 1 1 2 . 3 3 Swap 99 | . 6 22 26 17 28 Drop 123 | . 8 27 35 29 24 Fire 130 | 3 50 40 3 3 31 Melee 204 | . . 35 67 61 41 Ram 25 | . 1 . . . 24 Kick . | . . . . . . Crush . | . . . . . . Escape Stasis . | . . . . . . Rewire . | . . . . . . Trap . | . . . . . . Miscellaneous . | . . . . . . Route ------- -11/Scrapyard -10/Materials (discovered 3 exits: *Mat x2 / [*Min]) -9/Materials -8/Materials (discovered 3 exits: *Fac x3) -7/Factory -6/Factory History --------- Turn | Location | Event 37 | -11/Scrapyard | Discovered new exit (range 15) 437 | -11/Scrapyard | Entered Materials 438 | -10/Materials | Build established: Mutant 843 | -10/Materials | Discovered new exit (range 10) 933 | -10/Materials | Repaired Ion Engine 1149 | -10/Materials | Discovered new exit (range 10) 1346 | -10/Materials | Repaired Ion Engine 1372 | -10/Materials | Discovered new exit (range 6) 1430 | -10/Materials | Entered another Materials area 1430 | -9/Materials | Evolved 2 slots: Propulsion x2 1964 | -9/Materials | Discovered new exit (range 11) 2077 | -9/Materials | Core integrity fell below 50% 2109 | -9/Materials | Core integrity fell below 20% 2137 | -9/Materials | Lost 5 parts (1p1n1u2w) 2481 | -9/Materials | Build established: Scavenger-Mutant 2934 | -9/Materials | Entered another Materials area 2934 | -8/Materials | Evolved 2 slots: Utility x2 3281 | -8/Materials | Lost 5 parts (2n3u) 3436 | -8/Materials | Lost 3 parts (1n2u) 3694 | -8/Materials | Identified exit to Factory 3946 | -8/Materials | Lost 4 parts (4n) 3972 | -8/Materials | Build established: Gladiator 4593 | -8/Materials | Entered Factory 4593 | -7/Factory | Evolved 2 slots: Power x1, Weapon x1 4725 | -7/Factory | Garrison activated, responded to threat 4775 | -7/Factory | Build established: Scavenger-Gladiator 5117 | -7/Factory | Repaired Actuator Array 5145 | -7/Factory | Repaired Aluminum Leg 5165 | -7/Factory | Garrison activated, responded to threat 5282 | -7/Factory | Build established: Gladiator 5332 | -7/Factory | Lost 3 parts (1p1n1u) 5692 | -7/Factory | Repaired Microactuators 6887 | -7/Factory | Discovered new exit (range 11) 6987 | -7/Factory | Entered another Factory area 6987 | -6/Factory | Evolved 2 slots: Utility x1, Weapon x1 7314 | -6/Factory | Garrison activated, responded to threat 7390 | -6/Factory | Destroyed 8 combat bots 7659 | -6/Factory | Core integrity fell below 50% 7686 | -6/Factory | Lost 12 parts (1p4n5u2w) 7687 | -6/Factory | First assault squad dispatched 8271 | -6/Factory | Cargo convoy interrupted 8317 | -6/Factory | Build established: Tank 8318 | -6/Factory | Core integrity fell below 20% 8334 | -6/Factory | Destroyed by X-62 Marksman with Gauss Rifle Last Messages --------------- 08317_ Penetrated by Slug. 08317_ Imp. Heat Sink destroyed. 08317_ Minigun destroyed. 08317_ Penetrated by Slug. 08317_ Imp. Shield Generator destroyed. 08317_ Penetrated by Slug. 08318_ U-05 Engineer builds a Wall. 08322_ Slug penetrates Wall. 08322_ Minigun destroyed. 08322_ Slug penetrates Wall. 08322_ Penetrated by Slug. 08324_ Slug penetrates Wall. 08324_ U-05 Engineer lays Concrete. 08324_ Slug penetrates Wall. 08325_ U-05 Engineer builds a Wall. 08325_ Penetrated by Slug. 08329_ U-05 Engineer lays Concrete. 08333_ Construction Platform disabled. 08333_ Slug penetrates Construction Platform. 08334_ U-05 Engineer lays Concrete. Map ----- +----------------------------------------------------+ | ??????#+#?# # # ! #???# # | | ?????? ?# # # #???# # | | ?????? ?#####+## #######+########### # | | ?????? ?????# ## #???# | | ?????? ?????# #???# | | ?????? ?????# #???#% | | ??????# #?????# %##### | | ??????# #?????# % %% % | | ??????# #?????# ###########%% #####+## | | ??????# #????## #?????????#" T# %%! | | ####### #????#" #?????????# !% # | | ! = ##*##???## ####?????????# / ## | | # !###### ############## ## " " | | + ## # ## " " | | """ # ###### ##! # ## " " | | """ ## ##????# ## # ## " " | | """ ## #?????# ## """"""" # % ## " " | | #######/#######+## """"""" !#!|[ ## " " | | ????# # """"""" u#m|* ## " " | | ????# """""" # """""" !u!%! ## " " | | ????# * """"""??# h [#= ## " " | | ????# """""" ?# """"""" !# ## | | ????#! """""" # """"""" ##### ## | | ????# # """""""hi#???# ######## | | ????# ! """""" # """"" " h#???# | | ????# """""" # @x #???# | | ????# ! """""" #############???# | | ????# """""" #???????????????# | | ????# #???????????????#+## | | ??# #??????????????????# ######## | | #T ########+##########??????????????# # *= ! | | #??????????????# #!"""" | | % #??????????????+^ +="""" | | #??????????????# # """" | | %%% #??????????????# # """" | | %%%%%%%% #??????????????# # """" | | ############/### % #??????????????# # """" | | ??# %%%# % #??????????????# # """" | | ??# %%#%% #??????????????# # | | ??# ! # #??????????????# ###+#### | | ??# /#/ #??????????????# # ^ | | ??# # #??????????????# # """" | | ??# %# ###########????# # """" | | ??# # # #????# # """" | | ??# # # #????# # """" | | ??# # # #????# # | | ??# # #= #????# + ! | | ??# # %" #????# # ! | | ??# # =# ! #????# # | | ??############## # ! #????# # | +----------------------------------------------------+ Best States ------------- Heat Dissipation 51 Energy Generation 29 Energy Capacity 480 Matter Stores 450 Matter Capacity 450 Sight Range 20 Terrain Scan Density 10 Additional Mass Support 6 Armor Coverage 470 Propulsion Shielding 33 Melee Speed Boost 40 Evasion (%) 63 Targeting Accuracy 10 Melee Accuracy 13 Recoil Reduction 3 Defensive Hacking 10 Item Schematics ----------------- None Robot Schematics ------------------ None Fabricated ------------ Nothing Alien Tech Used ----------------- None Achievements -------------- Deadly Force Challenges ------------ None Game ------ Seed CombatDefenseChainsword Manual? 0 Play Time 01:35:19 Cumulative 6.1 hours Start 2024.04.02 @ 14:31:25 End 2024.04.02 @ 16:05:03 Sessions 7 Manual Loads 0 Difficulty Rogue Special Mode None Game No. 7 Rogue 7 Adventurer 0 Explorer 0 Win Type - Total 0 Types 0/0/0/0/0/0/0/0/0 Lore% 5 Gallery% 13 Achievement% 11 Wizard Run 0 Options --------- Layout 1 ASCII 0 Keyboard 0 Movement Mouse Keybinds 0 Fullscreen 2 Font 24/Terminus Map View 50x35 Zoom Use 0% Tactical HUD 1 Map Filters NONE Filters NONE Steam 1 RUN: 613eaa97-f44e-47db-93f4-ed93849b2a89